Workbook

Sheet Лист1
A1: Школа | C1: МБОУ "СОШ с. Ядыгерь" | F1: Утвердил: | G1: должность | H1: Директор школы
A2: Типовое примерное меню приготавливаемых блюд | G2: фамилия | H2: Нуриев Р.Р.
A3: Возрастная категория | E3: 7-11 лет | G3: дата | H3: 21 | I3: 2 | J3: 2025
H4: день | I4: месяц | J4: год
A5: Неделя | B5: День недели | C5: Прием пищи | D5: Раздел меню | E5: Блюда | F5: Вес блюда, г | G5: Белки | H5: Жиры | I5: Углеводы | J5: Калорийность | K5: № рецептуры | L5: Цена
A6: 1 | B6: 5 | C6: Завтрак | D6: гор блюдо | E6: пельмени мясные отварные | F6: 168 | G6: 9 | H6: 10.2 | I6: 18.15 | J6: 213 | K6: 392/2015 | L6: 71.41
D7: гор.напиток | E7: чай с лимоном | F7: 222 | G7: 0.084 | H7: 0.012 | I7: 15.185 | J7: 62 | K7: 377/2015 | L7: 2.74
D8: хлеб бел. | E8: пшеничный | F8: 30 | G8: 2.28 | H8: 0.24 | I8: 14.76 | J8: 71 | L8: 1.92
D9: хлеб черн. | E9: ржано-пшеничный | F9: 30 | G9: 1.5 | H9: 0.3 | I9: 13.5 | J9: 66 | L9: 1.92
D10: фрукты
D11: гарнир
D12: закуска | E12: салат из белокочанной капусты | F12: 60 | G12: 0.78 | H12: 1.94 | I12: 3.87 | J12: 36 | K12: 45/2015 | L12: 2.58
D13: итого | F13: 510 | G13: =SUM(G6:G12) -> 13.644 | H13: =SUM(H6:H12) -> 12.692 | I13: =SUM(I6:I12) -> 65.465 | J13: =SUM(J6:J12) -> 448 | L13: =SUM(L6:L12) -> 80.57
A14: 1 | B14: 5 | C14: Завтрак 2 | D14: гор.блюдо | E14: каша молочная (манная) | F14: 150 | G14: 5.1 | H14: 6.075 | I14: 30.8 | J14: 197.55 | K14: 181/2015 | L14: 12
D15: гор.напиток | E15: чай с сахаром | F15: 210 | G15: 0.2 | H15: 0 | I15: 10.1 | J15: 41.1 | K15: 376/2015 | L15: 1.3
D16: хлеб бел. | E16: пшеничный | F16: 30 | G16: 2.28 | H16: 0.24 | I16: 14.7 | J16: 70.95 | L16: 1.92
D17: итого | F17: 390 | G17: =SUM(G14:G16) -> 7.58 | H17: =SUM(H14:H16) -> 6.315 | I17: =SUM(I14:I16) -> 55.6 | J17: =SUM(J14:J16) -> 309.6 | L17: =SUM(L14:L16) -> 15.22
A18: 1 | B18: 5 | C18: Обед | D18: закуска
D19: 1 блюдо
D20: 2 блюдо
D21: гарнир
D22: напиток
D23: хлеб бел.
D24: хлеб черн.
D27: итого | F27: 0 | G27: 0 | H27: 0 | I27: 0 | J27: 0 | L27: 0
A28: 1 | B28: 5 | C28: Полдник | D28: булочное
D29: напиток
D32: итого | G32: =SUM(G28:G31) -> 0 | H32: =SUM(H28:H31) -> 0 | I32: =SUM(I28:I31) -> 0 | J32: =SUM(J28:J31) -> 0 | L32: =SUM(L28:L31) -> 0
A33: 1 | B33: 5 | C33: Ужин | D33: гор.блюдо
D34: гарнир
D35: напиток
D36: хлеб
D39: итого | F39: 0 | G39: 0 | H39: 0 | I39: 0 | J39: 0 | L39: 0
A40: 1 | B40: 5 | C40: Ужин 2 | D40: кисломол.
D41: булочное
D42: напиток
D43: фрукты
D46: итого | F46: 0 | G46: 0 | H46: 0 | I46: 0 | J46: 0 | L46: 0
A47: 1 | B47: 5 | C47: Итого за день: | F47: =SUM(F46,F39,F32,F27,F17,F13) -> 900 | G47: =SUM(G46,G39,G32,G27,G17,G13) -> 21.224 | H47: =SUM(H46,H39,H32,H27,H17,H13) -> 19.007 | I47: =SUM(I46,I39,I32,I27,I17,I13) -> 121.065 | J47: =SUM(J46,J39,J32,J27,J17,J13) -> 757.6 | L47: =SUM(L46,L39,L32,L27,L17,L13) -> 95.79
